{"text_format":"1","workbook":"xlsx","n_sheets":1,"sheets":["Order Form"],"not_rendered":{"charts":0,"images":1,"macros":1,"external_links":0,"defined_names":1,"comments":0,"pivot_tables":0},"unopened":[],"bounds":{"document_bytes":16777216,"sheet_cells":100000,"rows_first":2000,"rows_last":500,"rows_between":2000,"halvings":0,"cell_chars":16384,"cell_head_chars":4096},"cells_cut":0,"cells_raw":0,"read":"whole","date_system":"1900"}

{"sheet":"Order Form","index":0,"n_rows":44,"n_cols":7,"rows_kept":44,"cut":false,"hidden":false,"merged":[[41,1,41,5],[42,2,42,5],[43,2,43,5],[44,2,44,5],[45,2,45,5],[24,0,24,6],[6,0,6,6],[0,0,0,6],[1,0,1,1],[2,0,2,1],[1,2,1,6],[2,2,2,6],[3,0,3,1],[3,2,3,6],[4,0,4,1],[4,2,4,6]]}
["ORDER FORM"]
["Account Number:"]
["Purchase Order Number: "]
["Email:"]
["Send To:"]
[]
["Machine Consumables"]
["Serial #","Description","Part Number","Qty",null,"Unit Price","TOTAL"]
[null,null,null,null,null,null,{"$f":"D9*F9","v":0}]
[null,null,null,null,null,null,0]
[null,null,null,null,null,null,0]
[null,null,null,null,null,null,0]
[null,null,null,null,null,null,0]
[null,null,null,null,null,null,0]
[null,null,null,null,null,null,0]
[null,null,null,null,null,null,0]
[null,null,null,null,null,null,0]
[null,null,null,null,null,null,0]
[null,null,null,null,null,null,0]
[null,null,null,null,null,null,{"$f":"D20*F20","v":0}]
[null,null,null,null,null,null,{"$f":"D21*F21","v":0}]
[null,null,null,null,null,null,{"$f":"D22*F22","v":0}]
[null,null,null,null,null,"TOTAL  ",{"$f":"SUM(G9:G22)","v":0}]
[]
["Paper Supplies"]
["Acc. #","Description","Part Number","Qty",null,"Unit Price","TOTAL"]
[null,null,null,null,null,null,{"$f":"D27*F27","v":0}]
[null,null,null,null,null,null,0]
[null,null,null,null,null,null,0]
[null,null,null,null,null,null,0]
[null,null,null,null,null,null,0]
[null,null,null,null,null,null,0]
[null,null,null,null,null,null,0]
[null,null,null,null,null,null,0]
[null,null,null,null,null,null,0]
[null,null,null,null,null,null,{"$f":"D36*F36","v":0}]
[null,null,null,null,null,null,0]
[null,null,null,null,null,null,0]
[null,null,null,null,null,"TOTAL  ",{"$f":"SUM(G27:G38)","v":0}]
[]
[]
[null,"Delivery Address"]
[null,"Customer:"]
[null,"Location:"]